[Event "FIDE CB Open 2022"]
[Site "Ceske Budejovice"]
[Date "2022.07.07"]
[Round "7.15"]
[White "Mai, Alexander Oliver"]
[Black "Hladky, Tadeas"]
[Result "1-0"]
[ECO "C47"]
[WhiteElo "2159"]
[BlackElo "2095"]
[Annotator "ChessBase"]
[PlyCount "109"]
[EventDate "2022.07.01"]
[EventType "swiss"]
[EventCountry "CZE"]
[SourceTitle "playchess.com"]
[Source "ChessBase"]
[SourceQuality "1"]
[TimeControl "40/5400+30:1800+30"]

1. e4 {[%emt 0:00:03]} e5 {[%emt 0:00:05]} 2. Nf3 {[%emt 0:00:07]} Nc6 {[%emt 0:00:04]} 3. Nc3 {[%emt 0:00:10]} Nf6 {[%emt 0:00:06]} 4. d4 {[%emt 0:00:06]} exd4 {[%emt 0:00:06]} 5. Nxd4 {[%emt 0:00:05]} Bb4 {[%emt 0:00:06]} 6. Nxc6 {[%emt 0:00:04]} bxc6 {[%emt 0:00:05]} 7. Bd3 {[%emt 0:00:06]} O-O {[%emt 0:00:07]} 8. O-O {[%emt 0:00:05]} d5 {[%emt 0:00:02]} 9. exd5 {[%emt 0:00:23]} cxd5 {[%emt 0:00:06]} 10. h3 {[%emt 0:00:07]} c6 {[%emt 0:00:49]} 11. Qf3 {[%emt 0:00:10]} Bd6 {[%emt 0:00:29]} 12. Bf4 {[%emt 0:01:12]} Rb8 {[%emt 0:01:34]} 13. b3 {[%emt 0:00:10]} Be6 {[%emt 0:00:56]} 14. Ne2 {[%emt 0:05:15]} c5 {[%emt 0:06:57]} 15. c3 {[%emt 0:03:01]} Re8 {[%emt 0:04:43]} 16. Rfe1 {[%emt 0:04:01]} Rb6 {[%emt 0:07:32]} 17. Rad1 {[%emt 0:02:04]} Qc7 {[%emt 0:05:30]} 18. Bc2 {[%emt 0:05:08]} Bd7 {[%emt 0:10:15]} 19. Bg5 {[%emt 0:06:37]} Ne4 {[%emt 0:25:29]} 20. Bxe4 {[%emt 0:07:03]} dxe4 {[%emt 0:00:39]} 21. Qe3 {[%emt 0:00:28]} a5 {[%emt 0:11:21]} 22. c4 {[%emt 0:14:54]} a4 {[%emt 0:03:02]} 23. Qd2 {[%emt 0:03:32]} axb3 {[%emt 0:08:35]} 24. Nc3 {[%emt 0:02:13]} Qc6 {[%emt 0:01:59]} 25. axb3 {[%emt 0:10:17]} Bf5 {[%emt 0:01:20]} 26. Nb5 {[%emt 0:04:44]} Be5 {[%emt 0:03:20]} 27. Be3 {[%emt 0:01:43]} Qg6 {[%emt 0:01:44]} 28. Bxc5 {[%emt 0:04:39]} Bxh3 {[%emt 0:01:20]} 29. f4 {[%emt 0:00:40]} Bxf4 {[%emt 0:00:10]} 30. Qc2 {[%emt 0:02:46]} Rf6 {[%emt 0:02:38]} 31. Rxe4 {[%emt 0:02:45]} Rc8 {[%emt 0:01:51]} 32. Rde1 {[%emt 0:09:41]} Be6 {[%emt 0:02:47]} 33. Be7 {[%emt 0:01:22]} Rf5 {[%emt 0:00:17]} 34. Nd4 {[%emt 0:00:13]} Qg3 {[%emt 0:00:50]} 35. Nf3 {[%emt 0:01:56]} Bc7 {[%emt 0:00:32]} 36. Bh4 {[%emt 0:01:54]} Qg6 {[%emt 0:00:09]} 37. Bf2 {[%emt 0:04:01]} Qf6 {[%emt 0:00:52]} 38. Nd4 {[%emt 0:00:57]} Re5 {[%emt 0:00:29]} 39. Bh4 {[%emt 0:02:02]} Rxe4 {[%emt 0:00:32]} 40. Qxe4 {[%emt 0:02:52]} Qf4 {[%emt 0:00:23]} 41. Nxe6 {[%emt 0:04:05]} Qxe4 {[%emt 0:01:28]} 42. Rxe4 {[%emt 0:00:35]} fxe6 {[%emt 0:00:05]} 43. b4 {[%emt 0:02:11]} e5 {[%emt 0:01:29]} 44. b5 {[%emt 0:11:35]} Kf7 {[%emt 0:01:53]} 45. Bf2 {[%emt 0:03:22]} Ke6 {[%emt 0:00:18]} 46. g4 {[%emt 0:01:28]} Rf8 {[%emt 0:01:06]} 47. b6 {[%emt 0:02:56]} Bb8 {[%emt 0:00:07]} 48. Kf1 {[%emt 0:02:10]} Rf4 {[%emt 0:00:39]} 49. Rxf4 {[%emt 0:00:33]} exf4 {[%emt 0:00:08]} 50. Ke2 {[%emt 0:00:34]} h6 {[%emt 0:01:15]} 51. Kd3 {[%emt 0:00:51]} g6 {[%emt 0:00:15]} 52. Kd4 {[%emt 0:01:48]} h5 {[%emt 0:00:11]} 53. gxh5 {[%emt 0:00:14]} gxh5 {[%emt 0:00:12]} 54. Kc5 {[%emt 0:01:14]} Kd7 {[%emt 0:04:20]} 55. Kb5 {[%emt 0:00:56]} 1-0

[Event "FIDE CB Open 2022"]
[Site "Ceske Budejovice"]
[Date "2022.07.07"]
[Round "7.16"]
[White "Bartos, Jan"]
[Black "Zilavy, Jan"]
[Result "0-1"]
[ECO "D30"]
[WhiteElo "2142"]
[BlackElo "2090"]
[Annotator "NA RC"]
[PlyCount "60"]
[EventDate "2022.07.01"]
[EventType "swiss"]
[EventCountry "CZE"]
[SourceTitle "playchess.com"]
[Source "ChessBase"]
[SourceQuality "1"]
[TimeControl "40/5400+30:1800+30"]

1. d4 {[%emt 0:00:05]} d5 {[%emt 0:00:11]} 2. Nf3 {[%emt 0:00:14]} Nf6 {[%emt 0:00:11]} 3. c4 {[%emt 0:00:04]} e6 {[%emt 0:00:26]} 4. g3 {[%emt 0:00:27]} c5 {[%emt 0:00:57]} 5. cxd5 {[%emt 0:00:40]} exd5 {[%emt 0:00:11]} 6. Bg2 {[%emt 0:00:27]} Nc6 {[%emt 0:00:19]} 7. O-O {[%emt 0:00:09]} Be7 {[%emt 0:00:47]} 8. dxc5 {[%emt 0:00:27]} Bxc5 {[%emt 0:00:40]} 9. Qc2 {[%emt 0:00:18]} Bb6 {[%emt 0:01:55]} 10. Nc3 {[%emt 0:01:06]} O-O {[%emt 0:01:38]} 11. Na4 {[%emt 0:02:15]} Bc7 {[%emt 0:03:42]} 12. a3 {[%emt 0:01:53]} Re8 {[%emt 0:11:16]} 13. Nc5 {[%emt 0:03:16]} Qe7 {[%emt 0:07:12]} 14. e3 {[%emt 0:03:31]} Ne4 {[%emt 0:01:40]} 15. b4 {[%emt 0:07:09]} a5 {[%emt 0:09:06]} 16. Nxe4 {[%emt 0:12:17]} dxe4 {[%emt 0:02:01]} 17. Nd2 {[%emt 0:00:47]} axb4 {[%emt 0:02:50]} 18. Bxe4 {[%emt 0:11:21]} bxa3 {[%emt 0:02:39]} 19. Bxc6 {[%emt 0:13:03]} bxc6 {[%emt 0:00:14]} 20. Nc4 {[%emt 0:00:56]} Bh3 {[%emt 0:06:08]} 21. Bxa3 {[%emt 0:05:39]} Qf6 {[%emt 0:00:46]} 22. f4 {[%emt 0:00:24]} Bxf1 {[%emt 0:00:40]} 23. Rxf1 {[%emt 0:00:04]} Qe6 {[%emt 0:06:22]} 24. Bb2 {[%emt 0:03:50]} Qe4 {[%emt 0:03:07]} 25. Qc3 {[%emt 0:00:32]} f6 {[%emt 0:00:30]} 26. Ba3 {[%emt 0:09:38]} Red8 {[%emt 0:07:47]} 27. Rc1 {[%emt 0:04:12]} Rd3 {[%emt 0:02:43]} 28. Qb2 {[%emt 0:00:53]} Raxa3 {[%emt 0:04:39]} 29. Nxa3 {[%emt 0:01:28]} Qxe3+ {[%emt 0:00:06]} 30. Kf1 {[%emt 0:00:12]} Rd2 {[%emt 0:00:28]} 0-1

[Event "FIDE CB Open 2022"]
[Site "Ceske Budejovice"]
[Date "2022.07.07"]
[Round "7.17"]
[White "Panjer, Sidney"]
[Black "Mrazik, Tomas"]
[Result "1-0"]
[ECO "E91"]
[WhiteElo "2140"]
[BlackElo "2055"]
[Annotator "NA RC"]
[PlyCount "73"]
[EventDate "2022.07.01"]
[EventType "swiss"]
[EventCountry "CZE"]
[SourceTitle "playchess.com"]
[Source "ChessBase"]
[SourceQuality "1"]
[TimeControl "40/5400+30:1800+30"]

1. Nf3 {[%emt 0:00:04]} Nf6 {[%emt 0:00:07]} 2. c4 {[%emt 0:00:05]} g6 {[%emt 0:00:16]} 3. Nc3 {[%emt 0:00:15]} Bg7 {[%emt 0:00:34]} 4. e4 {[%emt 0:00:10]} d6 {[%emt 0:00:10]} 5. d4 {[%emt 0:00:11]} O-O {[%emt 0:00:24]} 6. Be2 {[%emt 0:00:11]} c5 {[%emt 0:00:15]} 7. O-O {[%emt 0:00:33]} Nc6 {[%emt 0:00:23]} 8. d5 {[%emt 0:00:37]} Na5 {[%emt 0:00:06]} 9. h3 {[%emt 0:00:32]} a6 {[%emt 0:01:55]} 10. Qc2 {[%emt 0:12:16]} e5 {[%emt 0:08:49]} 11. a3 {[%emt 0:00:37]} b6 {[%emt 0:00:57]} 12. b4 {[%emt 0:00:32]} Nb7 {[%emt 0:00:06]} 13. Ne1 {[%emt 0:08:14]} Ne8 {[%emt 0:03:20]} 14. Nd3 {[%emt 0:02:09]} f5 {[%emt 0:05:14]} 15. bxc5 {[%emt 0:02:44]} Nxc5 {[%emt 0:00:35]} 16. Nxc5 {[%emt 0:01:10]} bxc5 {[%emt 0:00:02]} 17. Rb1 {[%emt 0:02:10]} Nf6 {[%emt 0:01:32]} 18. Bd2 {[%emt 0:08:47]} f4 {[%emt 0:03:49]} 19. Na4 {[%emt 0:07:13]} g5 {[%emt 0:14:00]} 20. Nb6 {[%emt 0:15:15]} Ra7 {[%emt 0:04:43]} 21. Nxc8 {[%emt 0:01:36]} Qxc8 {[%emt 0:04:27]} 22. Rb6 {[%emt 0:00:26]} Qd7 {[%emt 0:11:48]} 23. Rfb1 {[%emt 0:08:11]} h5 {[%emt 0:00:37]} 24. f3 {[%emt 0:02:25]} g4 {[%emt 0:01:01]} 25. hxg4 {[%emt 0:01:38]} hxg4 {[%emt 0:00:06]} 26. fxg4 {[%emt 0:03:41]} Nxg4 {[%emt 0:03:31]} 27. Qb3 {[%emt 0:02:50]} Ne3 {[%emt 0:05:22]} 28. Bxe3 {[%emt 0:01:50]} fxe3 {[%emt 0:00:01]} 29. Qxe3 {[%emt 0:00:11]} Rf4 {[%emt 0:01:43]} 30. Qg3 {[%emt 0:01:13]} Kh7 {[%emt 0:07:01]} 31. Bh5 {[%emt 0:02:37]} Rf6 {[%emt 0:01:15]} 32. Bg4 {[%emt 0:01:27]} Qf7 {[%emt 0:05:52]} 33. Qh3+ {[%emt 0:09:31]} Bh6 {[%emt 0:01:42]} 34. Bf5+ {[%emt 0:00:13]} Kg8 {[%emt 0:00:42]} 35. Rb8+ {[%emt 0:00:59]} Bf8 {[%emt 0:00:43]} 36. Be6 {[%emt 0:00:15]} Rxe6 {[%emt 0:00:20]} 37. Qxe6 {[%emt 0:00:41]} 1-0

[Event "FIDE CB Open 2022"]
[Site "Ceske Budejovice"]
[Date "2022.07.07"]
[Round "7.18"]
[White "Zauner, Christoph"]
[Black "Hofstadler, Mario"]
[Result "1-0"]
[ECO "D45"]
[WhiteElo "1963"]
[BlackElo "2123"]
[Annotator "NA RC"]
[PlyCount "53"]
[EventDate "2022.07.01"]
[EventType "swiss"]
[EventCountry "CZE"]
[SourceTitle "playchess.com"]
[Source "ChessBase"]
[SourceQuality "1"]
[TimeControl "40/5400+30:1800+30"]

1. Nf3 {[%emt 0:00:26]} d5 {[%emt 0:00:16]} 2. c4 {[%emt 0:00:16]} c6 {[%emt 0:00:48]} 3. d4 {[%emt 0:01:47]} Nf6 {[%emt 0:00:08]} 4. Nc3 {[%emt 0:01:33]} e6 {[%emt 0:00:17]} 5. e3 {[%emt 0:00:28]} Nbd7 {[%emt 0:00:30]} 6. Qc2 {[%emt 0:00:41]} Be7 {[%emt 0:05:20]} 7. g4 {[%emt 0:01:45]} h6 {[%emt 0:14:02]} 8. Bd2 {[%emt 0:06:54]} a6 {[%emt 0:05:37]} 9. Rg1 {[%emt 0:10:38]} b5 {[%emt 0:21:10]} 10. g5 {[%emt 0:06:16]} hxg5 {[%emt 0:00:16]} 11. Nxg5 {[%emt 0:02:58]} Nf8 {[%emt 0:09:41]} 12. cxb5 {[%emt 0:12:43]} axb5 {[%emt 0:02:22]} 13. Bxb5 {[%emt 0:06:42]} Bd7 {[%emt 0:01:03]} 14. Bd3 {[%emt 0:01:05]} c5 {[%emt 0:01:08]} 15. dxc5 {[%emt 0:03:10]} Bxc5 {[%emt 0:05:57]} 16. Nxd5 {[%emt 0:01:39]} Rc8 {[%emt 0:00:46]} 17. Ba6 {[%emt 0:07:10]} Nxd5 {[%emt 0:06:28]} 18. Bxc8 {[%emt 0:00:37]} Qxc8 {[%emt 0:00:05]} 19. Rc1 {[%emt 0:05:00]} Nb4 {[%emt 0:02:44]} 20. Qc4 {[%emt 0:03:38]} Qb8 {[%emt 0:02:38]} 21. Rc3 {[%emt 0:08:43]} Be7 {[%emt 0:03:40]} 22. Rb3 {[%emt 0:05:12]} Qxh2 {[%emt 0:09:13]} 23. Nf3 {[%emt 0:00:14]} Rh4 {[%emt 0:02:37]} 24. Qxh4 {[%emt 0:02:35]} Bxh4 {[%emt 0:00:32]} 25. Nxh2 {[%emt 0:00:16]} Nd5 {[%emt 0:01:21]} 26. Rb8+ {[%emt 0:01:22]} Ke7 {[%emt 0:00:12]} 27. e4 {[%emt 0:00:45]} 1-0

[Event "FIDE CB Open 2022"]
[Site "Ceske Budejovice"]
[Date "2022.07.07"]
[Round "7.19"]
[White "Koch-Muller, Oscar"]
[Black "Lang, Simon"]
[Result "1-0"]
[ECO "D32"]
[WhiteElo "2115"]
[BlackElo "1942"]
[Annotator "NA RC"]
[PlyCount "65"]
[EventDate "2022.07.01"]
[EventType "swiss"]
[EventCountry "CZE"]
[SourceTitle "playchess.com"]
[Source "ChessBase"]
[SourceQuality "1"]
[TimeControl "40/5400+30:1800+30"]

1. d4 {[%emt 0:00:02]} d5 {[%emt 0:00:42]} 2. c4 {[%emt 0:00:03]} e6 {[%emt 0:00:32]} 3. Nc3 {[%emt 0:00:07]} c5 {[%emt 0:00:37]} 4. cxd5 {[%emt 0:00:04]} cxd4 {[%emt 0:00:25]} 5. Qxd4 {[%emt 0:00:06]} Nc6 {[%emt 0:00:28]} 6. Qd1 {[%emt 0:00:04]} exd5 {[%emt 0:00:34]} 7. Qxd5 {[%emt 0:00:12]} Bd7 {[%emt 0:00:35]} 8. Nf3 {[%emt 0:00:05]} Nf6 {[%emt 0:00:38]} 9. Qb3 {[%emt 0:00:05]} Bc5 {[%emt 0:02:41]} 10. Bg5 {[%emt 0:11:12]} Rc8 {[%emt 0:06:40]} 11. e3 {[%emt 0:05:58]} Be6 {[%emt 0:09:34]} 12. Bc4 {[%emt 0:08:23]} Na5 {[%emt 0:14:14]} 13. Qa4+ {[%emt 0:03:26]} Bd7 {[%emt 0:00:23]} 14. Bb5 {[%emt 0:00:50]} Nc6 {[%emt 0:00:26]} 15. O-O {[%emt 0:15:09]} a6 {[%emt 0:01:02]} 16. Bxf6 {[%emt 0:02:00]} Qxf6 {[%emt 0:01:38]} 17. Qe4+ {[%emt 0:01:17]} Qe6 {[%emt 0:02:12]} 18. Bc4 {[%emt 0:08:19]} Qxe4 {[%emt 0:06:45]} 19. Nxe4 {[%emt 0:00:02]} Be7 {[%emt 0:00:46]} 20. Rfd1 {[%emt 0:07:02]} Bg4 {[%emt 0:12:38]} 21. Be2 {[%emt 0:01:38]} O-O {[%emt 0:05:20]} 22. Kf1 {[%emt 0:09:49]} Bxf3 {[%emt 0:04:46]} 23. Bxf3 {[%emt 0:01:59]} Ne5 {[%emt 0:01:07]} 24. Rac1 {[%emt 0:01:36]} f5 {[%emt 0:04:29]} 25. Ng3 {[%emt 0:03:23]} Rxc1 {[%emt 0:08:22]} 26. Bd5+ {[%emt 0:02:13]} Kh8 {[%emt 0:00:10]} 27. Rxc1 {[%emt 0:00:01]} b6 {[%emt 0:03:20]} 28. Rc7 {[%emt 0:05:06]} Bc5 {[%emt 0:01:34]} 29. Nh5 {[%emt 0:05:53]} Ng4 {[%emt 0:01:47]} 30. Nxg7 {[%emt 0:03:13]} f4 {[%emt 0:04:35]} 31. Ne6 {[%emt 0:02:02]} fxe3 {[%emt 0:00:15]} 32. Nxf8 {[%emt 0:01:08]} exf2 {[%emt 0:00:26]} 33. Rxh7# {[%emt 0:00:18]} 1-0

[Event "FIDE CB Open 2022"]
[Site "Ceske Budejovice"]
[Date "2022.07.07"]
[Round "7.20"]
[White "Zezula, Jakub"]
[Black "Prazak, Daniel"]
[Result "0-1"]
[ECO "C08"]
[WhiteElo "1831"]
[BlackElo "2113"]
[Annotator "NA RC"]
[PlyCount "58"]
[EventDate "2022.07.01"]
[EventType "swiss"]
[EventCountry "CZE"]
[SourceTitle "playchess.com"]
[Source "ChessBase"]
[SourceQuality "1"]
[TimeControl "40/5400+30:1800+30"]

1. e4 {[%emt 0:00:05]} e6 {[%emt 0:00:10]} 2. d4 {[%emt 0:00:09]} d5 {[%emt 0:00:25]} 3. Nd2 {[%emt 0:00:18]} c5 {[%emt 0:00:50]} 4. exd5 {[%emt 0:01:25]} exd5 {[%emt 0:00:12]} 5. Ngf3 {[%emt 0:01:23]} a6 {[%emt 0:00:11]} 6. Be2 {[%emt 0:01:29]} Nf6 {[%emt 0:00:15]} 7. O-O {[%emt 0:00:42]} Be7 {[%emt 0:00:12]} 8. dxc5 {[%emt 0:00:55]} Bxc5 {[%emt 0:00:14]} 9. Nb3 {[%emt 0:00:26]} Bb6 {[%emt 0:00:10]} 10. Bg5 {[%emt 0:01:59]} O-O {[%emt 0:00:26]} 11. c3 {[%emt 0:06:10]} Nc6 {[%emt 0:00:11]} 12. Nbd4 {[%emt 0:07:36]} h6 {[%emt 0:04:40]} 13. Bh4 {[%emt 0:04:11]} g5 {[%emt 0:02:29]} 14. Bg3 {[%emt 0:05:46]} Ne4 {[%emt 0:01:42]} 15. Bd3 {[%emt 0:15:04]} f5 {[%emt 0:05:56]} 16. Nxc6 {[%emt 0:05:56]} bxc6 {[%emt 0:01:08]} 17. Be5 {[%emt 0:13:08]} Qe7 {[%emt 0:11:13]} 18. Bd4 {[%emt 0:01:33]} Bc7 {[%emt 0:01:11]} 19. Re1 {[%emt 0:08:00]} c5 {[%emt 0:14:31]} 20. Be3 {[%emt 0:00:52]} Qd6 {[%emt 0:01:37]} 21. g3 {[%emt 0:03:29]} f4 {[%emt 0:03:23]} 22. gxf4 {[%emt 0:05:12]} gxf4 {[%emt 0:01:56]} 23. Bd2 {[%emt 0:04:37]} Qg6+ {[%emt 0:01:16]} 24. Kf1 {[%emt 0:00:09]} Bh3+ {[%emt 0:00:16]} 25. Ke2 {[%emt 0:00:08]} Rae8 {[%emt 0:00:18]} 26. Be3 {[%emt 0:00:55]} fxe3 {[%emt 0:01:20]} 27. Rg1 {[%emt 0:00:14]} Bg4 {[%emt 0:00:28]} 28. Bxe4 {[%emt 0:00:29]} dxe4 {[%emt 0:00:34]} 29. Qd5+ {[%emt 0:00:49]} Kh8 {[%emt 0:00:17]} 0-1

[Event "FIDE CB Open 2022"]
[Site "Ceske Budejovice"]
[Date "2022.07.07"]
[Round "7.21"]
[White "Vltavsky, Vladimir"]
[Black "Vaculik, Martin"]
[Result "1/2-1/2"]
[ECO "C00"]
[WhiteElo "2106"]
[BlackElo "2284"]
[Annotator "RC"]
[PlyCount "31"]
[EventDate "2022.07.01"]
[EventType "swiss"]
[EventCountry "CZE"]
[SourceTitle "playchess.com"]
[Source "ChessBase"]
[SourceQuality "1"]
[TimeControl "40/5400+30:1800+30"]

1. e4 {[%emt 0:23:29]} e6 {[%emt 0:00:17]} 2. Bb5 {[%emt 0:00:13]} a6 {[%emt 0:03:07]} 3. Ba4 {[%emt 0:00:48]} c5 {[%emt 0:00:42]} 4. c3 {[%emt 0:00:07]} b5 {[%emt 0:03:57]} 5. Bc2 {[%emt 0:00:07]} d5 {[%emt 0:03:26]} 6. d4 {[%emt 0:00:58]} cxd4 {[%emt 0:04:37]} 7. cxd4 {[%emt 0:01:27]} dxe4 {[%emt 0:00:39]} 8. Bxe4 {[%emt 0:00:07]} Ra7 {[%emt 0:00:02]} 9. Ne2 {[%emt 0:00:41]} Nf6 {[%emt 0:01:04]} 10. Bf3 {[%emt 0:00:35]} Bb7 {[%emt 0:02:14]} 11. Bxb7 {[%emt 0:00:56]} Rxb7 {[%emt 0:00:03]} 12. Be3 {[%emt 0:01:13]} Be7 {[%emt 0:04:22]} 13. O-O {[%emt 0:00:59]} O-O {[%emt 0:00:07]} 14. Nd2 {[%emt 0:00:03]} Nbd7 {[%emt 0:06:54]} 15. Nf3 {[%emt 0:03:30]} Nb6 {[%emt 0:04:59]} 16. Ne5 {[%emt 0:01:44]} 1/2-1/2

[Event "FIDE CB Open 2022"]
[Site "Ceske Budejovice"]
[Date "2022.07.07"]
[Round "7.22"]
[White "Pirola, Claudionor Alcides L"]
[Black "Ondrejat, Miroslav"]
[Result "1-0"]
[ECO "B45"]
[WhiteElo "2100"]
[BlackElo "1903"]
[Annotator "NA RC"]
[PlyCount "65"]
[EventDate "2022.07.01"]
[EventType "swiss"]
[EventCountry "CZE"]
[SourceTitle "playchess.com"]
[Source "ChessBase"]
[SourceQuality "1"]
[TimeControl "40/5400+30:1800+30"]

1. e4 {[%emt 0:00:06]} c5 {[%emt 0:00:26]} 2. Nf3 {[%emt 0:00:04]} e6 {[%emt 0:00:29]} 3. d4 {[%emt 0:00:13]} cxd4 {[%emt 0:00:04]} 4. Nxd4 {[%emt 0:00:09]} Nf6 {[%emt 0:00:10]} 5. Nc3 {[%emt 0:00:45]} Nc6 {[%emt 0:00:27]} 6. Nxc6 {[%emt 0:00:39]} bxc6 {[%emt 0:00:48]} 7. e5 {[%emt 0:00:03]} Nd5 {[%emt 0:00:20]} 8. Ne4 {[%emt 0:00:03]} Qc7 {[%emt 0:02:40]} 9. f4 {[%emt 0:00:08]} Qb6 {[%emt 0:00:12]} 10. a3 {[%emt 0:03:56]} Ba6 {[%emt 0:13:02]} 11. c4 {[%emt 0:05:12]} Ne3 {[%emt 0:00:12]} 12. Qd3 {[%emt 0:01:39]} Nxf1 {[%emt 0:11:53]} 13. Rxf1 {[%emt 0:00:17]} c5 {[%emt 0:05:02]} 14. Rf2 {[%emt 0:12:01]} Bb7 {[%emt 0:16:01]} 15. Be3 {[%emt 0:00:28]} Qc6 {[%emt 0:00:46]} 16. O-O-O {[%emt 0:00:35]} O-O-O {[%emt 0:02:32]} 17. Nd6+ {[%emt 0:02:35]} Bxd6 {[%emt 0:00:44]} 18. Qxd6 {[%emt 0:01:03]} Qxd6 {[%emt 0:04:21]} 19. Rxd6 {[%emt 0:00:51]} Bc6 {[%emt 0:01:17]} 20. Bxc5 {[%emt 0:00:10]} Kb7 {[%emt 0:00:46]} 21. b4 {[%emt 0:00:17]} a6 {[%emt 0:04:58]} 22. a4 {[%emt 0:05:06]} Rc8 {[%emt 0:05:02]} 23. a5 {[%emt 0:04:13]} Ka8 {[%emt 0:03:19]} 24. Kd2 {[%emt 0:01:17]} Rb8 {[%emt 0:00:17]} 25. Ke3 {[%emt 0:00:15]} Rb7 {[%emt 0:00:17]} 26. Rb2 {[%emt 0:01:18]} Rhb8 {[%emt 0:02:26]} 27. Bb6 {[%emt 0:04:27]} h5 {[%emt 0:08:17]} 28. b5 {[%emt 0:04:55]} axb5 {[%emt 0:01:24]} 29. cxb5 {[%emt 0:00:03]} Bd5 {[%emt 0:03:09]} 30. Bc5 {[%emt 0:01:55]} Bc6 {[%emt 0:01:55]} 31. b6 {[%emt 0:01:09]} Rd8 {[%emt 0:02:29]} 32. a6 {[%emt 0:00:30]} Rbb8 {[%emt 0:00:17]} 33. Rd4 {[%emt 0:01:12]} 1-0

[Event "FIDE CB Open 2022"]
[Site "Ceske Budejovice"]
[Date "2022.07.07"]
[Round "7.23"]
[White "Sykora, Ondrej"]
[Black "Simunek, Jakub Simon"]
[Result "1-0"]
[ECO "E09"]
[WhiteElo "2099"]
[BlackElo "1887"]
[Annotator "NA RC"]
[PlyCount "39"]
[EventDate "2022.07.01"]
[EventType "swiss"]
[EventCountry "CZE"]
[SourceTitle "playchess.com"]
[Source "ChessBase"]
[SourceQuality "1"]
[TimeControl "40/5400+30:1800+30"]

1. Nf3 {[%emt 0:01:45]} e6 {[%emt 0:01:01]} 2. g3 {[%emt 0:00:38]} d5 {[%emt 0:00:26]} 3. Bg2 {[%emt 0:00:07]} Nf6 {[%emt 0:00:09]} 4. d4 {[%emt 0:00:06]} c6 {[%emt 0:00:30]} 5. O-O {[%emt 0:00:08]} Be7 {[%emt 0:00:03]} 6. Nbd2 {[%emt 0:00:46]} O-O {[%emt 0:00:11]} 7. c4 {[%emt 0:00:22]} Nbd7 {[%emt 0:01:47]} 8. Qc2 {[%emt 0:01:43]} b6 {[%emt 0:08:29]} 9. b3 {[%emt 0:07:48]} Bb7 {[%emt 0:01:16]} 10. Bb2 {[%emt 0:00:07]} dxc4 {[%emt 0:01:23]} 11. Nxc4 {[%emt 0:02:35]} c5 {[%emt 0:03:03]} 12. Rad1 {[%emt 0:01:30]} Rc8 {[%emt 0:01:55]} 13. dxc5 {[%emt 0:01:28]} Bxc5 {[%emt 0:00:08]} 14. Ng5 {[%emt 0:00:38]} Qc7 {[%emt 0:01:38]} 15. Rxd7 {[%emt 0:03:58]} Qxd7 {[%emt 0:00:06]} 16. Bxf6 {[%emt 0:00:06]} g6 {[%emt 0:00:05]} 17. Ne5 {[%emt 0:04:16]} Qc7 {[%emt 0:01:43]} 18. Ng4 {[%emt 0:00:49]} Bxf2+ {[%emt 0:00:52]} 19. Rxf2 {[%emt 0:00:13]} Qxc2 {[%emt 0:00:03]} 20. Nh6# {[%emt 0:00:05]} 1-0

[Event "FIDE CB Open 2022"]
[Site "Ceske Budejovice"]
[Date "2022.07.07"]
[Round "7.24"]
[White "Vrchotka, Josef"]
[Black "Hiermann, Dietmar"]
[Result "0-1"]
[ECO "C47"]
[WhiteElo "1959"]
[BlackElo "2224"]
[Annotator "RC"]
[PlyCount "52"]
[EventDate "2022.07.01"]
[EventType "swiss"]
[EventCountry "CZE"]
[SourceTitle "playchess.com"]
[Source "ChessBase"]
[SourceQuality "1"]
[TimeControl "40/5400+30:1800+30"]

1. e4 {[%emt 0:00:18]} e5 {[%emt 0:00:01]} 2. Nc3 {[%emt 0:00:19]} Nf6 {[%emt 0:00:04]} 3. Nf3 {[%emt 0:00:09]} Nc6 {[%emt 0:00:05]} 4. d4 {[%emt 0:00:07]} exd4 {[%emt 0:01:39]} 5. Nxd4 {[%emt 0:00:14]} Bb4 {[%emt 0:00:22]} 6. Nxc6 {[%emt 0:00:13]} bxc6 {[%emt 0:01:00]} 7. Bd3 {[%emt 0:00:31]} d5 {[%emt 0:00:58]} 8. exd5 {[%emt 0:00:21]} cxd5 {[%emt 0:00:03]} 9. O-O {[%emt 0:00:22]} O-O {[%emt 0:00:01]} 10. h3 {[%emt 0:00:16]} h6 {[%emt 0:03:31]} 11. Qf3 {[%emt 0:03:55]} Rb8 {[%emt 0:05:39]} 12. Bf4 {[%emt 0:03:16]} Bd6 {[%emt 0:00:24]} 13. b3 {[%emt 0:02:29]} c6 {[%emt 0:04:27]} 14. Rad1 {[%emt 0:02:06]} Rb4 {[%emt 0:06:21]} 15. Ne2 {[%emt 0:06:50]} c5 {[%emt 0:13:48]} 16. Bc4 {[%emt 0:15:32]} Bb7 {[%emt 0:05:50]} 17. Bxd6 {[%emt 0:16:26]} Qxd6 {[%emt 0:01:51]} 18. c3 {[%emt 0:09:57]} Rb6 {[%emt 0:01:15]} 19. Bd3 {[%emt 0:05:01]} Re8 {[%emt 0:12:54]} 20. Qg3 {[%emt 0:01:46]} Re5 {[%emt 0:16:57]} 21. Rfe1 {[%emt 0:07:45]} Qe7 {[%emt 0:03:21]} 22. Kf1 {[%emt 0:03:42]} Nh5 {[%emt 0:06:51]} 23. Qg4 {[%emt 0:02:27]} Rg5 {[%emt 0:01:40]} 24. Qh4 {[%emt 0:01:01]} Re5 {[%emt 0:11:12]} 25. f4 {[%emt 0:04:27]} Qxh4 {[%emt 0:00:16]} 26. fxe5 {[%emt 0:00:25]} Ng3+ {[%emt 0:00:20]} 0-1